fUST/lending_fUST_20240914
["ID","MTS","AMOUNT","RATE_DAILY","PERIOD"]
[338150836,1726315566592,-500.0,0.00044109,120]
[338150837,1726315566634,-500.0,0.00044109,120]
[338150838,1726315566678,-500.0,0.00044109,120]
[338150839,1726315566721,-500.0,0.00044109,120]
[338150840,1726315566765,-500.0,0.00044109,120]
[338150841,1726315566809,-1011.37,0.00044109,120]
[338150842,1726315566852,-500.0,0.00044109,120]
[338150843,1726315566896,-500.0,0.00044109,120]
[338150844,1726315566941,-500.0,0.00044109,120]
[338150845,1726315566985,-604.55,0.00044109,120]
[338150846,1726315567029,-761.39,0.00044109,120]
[338150847,1726315567073,-500.0,0.00044109,120]
[338150848,1726315567116,-1576.26,0.00044109,120]
[338150849,1726315567158,-500.0,0.00044109,120]
[338150850,1726315567200,-500.0,0.00044109,120]
[338150851,1726315567243,-1802.49,0.00044109,120]
[338150852,1726315567286,-500.0,0.00044109,120]
[338150853,1726315567327,-500.0,0.00044109,120]
[338150854,1726315567367,-500.0,0.00044109,120]
[338150855,1726315567407,-271.06858725,0.00044109,120]
[338150856,1726315567447,-1401.15,0.00044109,120]
[338150857,1726315567488,-500.0,0.00044109,120]
[338150858,1726315567528,-500.0,0.00044109,120]
[338150859,1726315567570,-500.0,0.00044109,120]
[338150860,1726315567611,-500.0,0.00044109,120]
[338150861,1726315567653,-500.0,0.00044109,120]
[338150862,1726315567698,-583.26,0.00044109,120]
[338150863,1726315567743,-695.7,0.00044109,120]
[338150864,1726315567789,-500.0,0.00044109,120]
[338150865,1726315567834,-500.0,0.00044109,120]
[338150866,1726315567878,-986.21,0.00044109,120]
[338150867,1726315567924,-2943.43,0.00044109,120]
[338150868,1726315567970,-500.0,0.00044109,120]
[338150869,1726315568019,-500.0,0.00044109,120]
[338150870,1726315568067,-500.0,0.00044109,7]
[338150871,1726315568113,-513.56824316,0.00044109,120]
[338150872,1726315568158,-500.0,0.00044109,120]
[338150873,1726315568203,-500.0,0.00044109,120]
[338150874,1726315568248,-387.13509838,0.00044109,120]
[338150875,1726315629607,-179.9,0.00037438,15]
[338150876,1726315629652,-179.9,0.00038208,15]
[338150877,1726315629701,-179.9,0.00038977,15]
[338150878,1726315629741,-179.9,0.00039747,15]
[338150879,1726315629781,-179.9,0.00040517,15]
[338150880,1726315629831,-179.9,0.00041287,31]
[338150881,1726315629872,-153.0,0.00041918,120]
[338150882,1726315629913,-153.0,0.00041918,120]
[338150883,1726315629952,-153.0,0.00041918,120]
[338150884,1726315629993,-153.0,0.00041918,120]
[338150885,1726315630034,-153.0,0.00041918,120]
[338150886,1726315630073,-153.0,0.00041918,120]
[338150887,1726315630113,-153.0,0.00041918,120]
[338150888,1726315630151,-153.0,0.00041918,120]
[338150889,1726315630190,-153.0,0.00041918,120]
[338150890,1726315630233,-153.0,0.00041918,120]
[338150891,1726315630272,-153.0,0.00041918,120]
[338150892,1726315630317,-153.0,0.00041918,120]
[338150893,1726315630359,-153.0,0.00041918,120]
[338150894,1726315630400,-153.0,0.00041918,120]
[338150895,1726315630440,-153.0,0.00041918,120]
[338150896,1726315630478,-153.0,0.00041918,120]
[338150897,1726315630516,-153.0,0.00041918,120]
[338150898,1726315630556,-153.0,0.00041918,120]
[338150899,1726315630594,-153.0,0.00041918,120]
[338150900,1726315630632,-153.0,0.00041918,120]
[338150901,1726315630672,-153.0,0.00041918,120]
[338150902,1726315630713,-153.0,0.00041918,120]
[338150903,1726315630757,-153.0,0.00041918,120]
[338150904,1726315630796,-153.0,0.00041918,120]
[338150905,1726315630838,-179.9,0.00042057,31]
[338150906,1726315630876,-179.9,0.00042826,31]
[338150907,1726315630918,-276.0,0.00043,90]
[338150908,1726315630961,-276.0,0.00043014,90]
[338150909,1726315631004,-179.9,0.00043596,31]
[338150910,1726315631045,-500.0,0.00043835,120]
[338150911,1726315631085,-514.95400451,0.00043835,120]
[338150912,1726315631125,-500.7,0.00043835,120]
[338150913,1726315631165,-2557.41,0.00043835,18]
[338150914,1726315631202,-500.0,0.00043835,120]
[338150915,1726315631238,-500.0,0.00043835,120]
[338150916,1726315631277,-500.0,0.00043835,120]
[338150917,1726315631317,-500.0,0.00043835,120]
[338150918,1726315631353,-500.0,0.00043835,120]
[338150919,1726315631389,-500.0,0.00043835,120]
[338150920,1726315631428,-500.0,0.00043835,120]
[338150921,1726315631465,-631.17,0.00043835,120]
[338150922,1726315631507,-500.0,0.00043835,120]
[338150923,1726315631547,-500.0,0.00043835,120]
[338150924,1726315631585,-500.0,0.00043835,120]
[338150925,1726315631626,-500.0,0.00043835,120]
[338150926,1726315631662,-500.0,0.00043835,120]
[338150927,1726315631702,-500.0,0.00043835,120]
[338150928,1726315631742,-500.0,0.00043835,120]
[338150929,1726315631778,-500.0,0.00043835,120]
[338150930,1726315631816,-393.71417716,0.00043835,120]
[338150931,1726315631856,-500.0,0.00043835,21]
[338150932,1726315631893,-500.0,0.00043835,120]
[338150933,1726315631931,-500.0,0.00043835,120]
[338150934,1726315631969,-628.46437366,0.00043835,120]
[338150935,1726315632005,-500.0,0.00043835,120]
[338150936,1726315632043,-500.0,0.00043835,30]
[338150937,1726315632250,-500.0,0.00043835,120]
[338150938,1726315632296,-500.0,0.00043835,120]
[338150939,1726315632340,-500.0,0.00043835,120]
[338150940,1726315632382,-500.0,0.00043835,120]
[338150941,1726315632426,-500.0,0.00043835,120]
[338150942,1726315632466,-500.0,0.00043835,120]
[338150943,1726315632505,-500.0,0.00043835,120]
[338150944,1726315632549,-500.0,0.00043835,120]
[338150945,1726315632597,-500.0,0.00043835,120]
[338150946,1726315632639,-500.0,0.00043835,120]
[338150947,1726315632680,-500.0,0.00043835,120]
[338150948,1726315632722,-500.0,0.00043835,120]
[338150949,1726315632763,-500.0,0.00043835,120]
[338150950,1726315632801,-500.0,0.00043835,120]
[338150951,1726315632841,-500.0,0.00043835,120]
[338150952,1726315632878,-500.0,0.00043835,120]
[338150953,1726315632916,-500.0,0.00043835,120]
[338150954,1726315632954,-500.0,0.00043835,120]
[338150955,1726315632993,-500.0,0.00043835,120]
[338150956,1726315633031,-500.0,0.00043835,120]
[338150957,1726315633070,-500.0,0.00043835,120]
[338150958,1726315633109,-500.0,0.00043835,120]
[338150959,1726315633146,-500.0,0.00043835,120]
[338150960,1726315633183,-500.0,0.00043835,120]
[338150961,1726315633225,-500.0,0.00043835,120]
[338150962,1726315633270,-196.0,0.00043835,120]
[338150963,1726315633321,-500.0,0.00043835,120]
[338150964,1726315633360,-500.0,0.00043835,120]
[338150965,1726315633399,-500.0,0.00043835,120]
[338150966,1726315633444,-500.0,0.00043835,120]
[338150967,1726315633485,-500.0,0.00043835,120]
[338150968,1726315633524,-500.0,0.00043835,120]
[338150969,1726315633565,-500.0,0.00043835,120]
[338150970,1726315633603,-500.0,0.00043835,120]
[338150971,1726315633641,-500.0,0.00043835,120]
[338150972,1726315633680,-500.0,0.00043835,120]
[338150973,1726315633722,-500.0,0.00043835,120]
[338150974,1726315633761,-519.46525074,0.00043835,120]
[338150975,1726315633802,-9598.56,0.00043835,120]
[338150976,1726315633846,-500.0,0.00043835,120]
[338150977,1726315633886,-500.0,0.00043835,120]
[338150978,1726315633926,-2421.45,0.00043835,120]
[338150979,1726315633967,-971.21,0.00043835,120]
[338150980,1726315634008,-500.0,0.00043835,120]
[338150981,1726315634050,-500.0,0.00043835,120]
[338150982,1726315634092,-500.0,0.00043835,120]
[338150983,1726315634134,-4076.64,0.00043835,120]
[338150984,1726315634173,-500.0,0.00043835,120]
[338150985,1726315634214,-934.58,0.00043835,120]
[338150986,1726315634254,-500.0,0.00043835,120]
[338150987,1726315634293,-500.0,0.00043835,120]
[338150988,1726315634334,-500.0,0.00043835,120]
[338150989,1726315634373,-554.17,0.00043835,120]
[338150990,1726315634414,-9183.3,0.00043835,120]
[338150991,1726315634453,-500.0,0.00043835,120]
[338150992,1726315634491,-500.0,0.00043835,120]
[338150993,1726315634530,-901.52,0.00043835,120]
[338150994,1726315634569,-2020.46,0.00043835,120]
[338150995,1726315634608,-500.0,0.00043835,120]
[338150996,1726315634648,-500.0,0.00043835,120]
[338150997,1726315634689,-927.09,0.00043835,120]
[338150998,1726315634731,-500.0,0.00043835,120]
[338150999,1726315634772,-666.08,0.00043835,120]
[338151000,1726315634812,-500.0,0.00043835,120]
[338151001,1726315634854,-502.8831788,0.00043835,120]
[338151002,1726315634897,-3763.01,0.00043835,120]
[338151003,1726315634942,-500.0,0.00043835,120]
[338151004,1726315634985,-500.0,0.00043835,120]
[338151005,1726315635031,-521.5,0.00043835,120]
[338151006,1726315635075,-500.0,0.00043835,120]
[338151007,1726315635117,-4211.93,0.00043835,120]
[338151008,1726315635157,-500.0,0.00043835,120]
[338151009,1726315635194,-500.0,0.00043835,120]
[338151010,1726315635233,-500.0,0.00043835,120]
[338151011,1726315635272,-500.0,0.00043835,120]
[338151012,1726315635309,-1652.28,0.00043835,120]
[338151013,1726315635348,-16528.59,0.00043835,120]
[338151014,1726315635386,-1887.03,0.00043835,120]
[338151015,1726315635426,-41651.8,0.00043835,120]
[338151016,1726315635465,-500.0,0.00043835,120]
[338151017,1726315635505,-500.0,0.00043835,120]
[338151018,1726315635543,-697.94,0.00043835,120]
[338151019,1726315635584,-500.0,0.00043835,120]
[338151020,1726315635625,-986.74,0.00043835,120]
[338151021,1726315635669,-500.0,0.00043835,120]
[338151022,1726315635716,-500.0,0.00043835,120]
[338151023,1726315635759,-1284.39,0.00043835,120]
[338151024,1726315635803,-500.0,0.00043835,120]
[338151025,1726315635845,-500.0,0.00043835,120]
[338151026,1726315635885,-500.0,0.00043835,120]
[338151027,1726315635925,-1444.9,0.00043835,120]
[338151028,1726315635966,-1322.69,0.00043835,120]
[338151029,1726315636008,-500.0,0.00043835,120]
[338151030,1726315636050,-1549.33,0.00043835,120]
[338151031,1726315636092,-500.0,0.00043835,120]
[338151032,1726315636131,-332.10490162,0.00044109,120]
[338151033,1726315636167,-500.0,0.00044109,120]
[338151034,1726315636206,-500.0,0.00044109,120]
[338151035,1726315636243,-500.0,0.00044109,120]
[338151036,1726315636279,-503.47730438,0.00044109,120]
[338151037,1726315636314,-504.89,0.00044109,120]
[338151038,1726315636351,-500.0,0.00044109,120]
[338151039,1726315636385,-500.0,0.00044109,120]
[338151040,1726315636578,-500.0,0.00044109,120]
[338151041,1726315636616,-225.83734193,0.00044109,120]
[338151042,1726315636653,-500.0,0.00044109,120]
[338151043,1726315636696,-500.0,0.00044109,120]
[338151044,1726315636735,-521.50026456,0.00044109,120]
[338151045,1726315636773,-547.23,0.00044109,120]
[338151046,1726315636814,-500.0,0.00044109,120]
[338151047,1726315636852,-1197.1,0.00044109,120]
[338151048,1726315636890,-428.87103676,0.00044109,120]
[338151049,1726315636928,-500.0,0.00044109,120]
[338151050,1726315636967,-888.18,0.00044109,120]
[338151051,1726315637003,-841.08,0.00044109,120]
[338151052,1726315637042,-500.0,0.00044109,120]
[338151053,1726315637079,-289.63028805,0.00044109,120]
[338151054,1726315637116,-500.0,0.00044109,120]
[338151055,1726315637157,-500.0,0.00044109,120]
[338151056,1726315637199,-500.0,0.00044109,120]
[338151057,1726315637237,-500.0,0.00044109,120]
[338151058,1726315637275,-504.20599055,0.00044109,120]
[338151059,1726315637313,-500.0,0.00044109,120]
[338151060,1726315637353,-500.0,0.00044109,120]
[338151061,1726315637395,-500.0,0.00044109,120]
[338151062,1726315637443,-236.17740566,0.00044109,120]
[338151063,1726315637485,-585.56226345,0.00044109,120]
[338151064,1726315637525,-500.0,0.00044109,120]
[338151065,1726315637563,-500.0,0.00044109,120]
[338151066,1726315637602,-500.0,0.00044109,120]
[338151067,1726315637644,-500.0,0.00044109,120]
[338151068,1726315637687,-500.0,0.00044109,120]
[338151069,1726315637725,-500.0,0.00044109,120]
[338151070,1726315637764,-500.0,0.00044109,120]
[338151071,1726315637804,-2696.63,0.00044109,120]
[338151072,1726315637847,-500.0,0.00044109,120]
[338151073,1726315637887,-500.0,0.00044109,30]
[338151074,1726315637927,-500.0,0.00044109,120]
[338151075,1726315637967,-1893.53,0.00044109,120]
[338151076,1726315638005,-500.0,0.00044109,30]
[338151077,1726315638047,-500.0,0.00044109,120]
[338151078,1726315638089,-500.0,0.00044109,120]
[338151079,1726315638129,-500.0,0.00044109,120]
[338151080,1726315638168,-500.0,0.00044109,120]
[338151081,1726315638208,-500.0,0.00044109,120]
[338151082,1726315638247,-626.53,0.00044109,7]
[338151083,1726315638285,-500.0,0.00044109,120]
[338151084,1726315638322,-500.0,0.00044109,120]
[338151085,1726315638361,-1024.98,0.00044109,120]
[338151086,1726315638399,-504.92599367,0.00044109,120]
[338151087,1726315638438,-500.0,0.00044109,120]
[338151088,1726315638475,-1176.98,0.00044109,120]
[338151089,1726315638513,-500.0,0.00044109,120]
[338151090,1726315638550,-526.81612883,0.00044109,120]
[338151091,1726315638589,-500.0,0.00044109,120]
[338151092,1726315638625,-500.0,0.00044109,120]
[338151093,1726315638667,-506.0,0.00044109,120]
[338151094,1726315638710,-500.0,0.00044109,120]
[338151095,1726315638751,-792.81,0.00044109,120]
[338151096,1726315638793,-622.36157942,0.00044109,120]
[338151097,1726315638833,-500.0,0.00044109,120]
[338151098,1726315638876,-500.0,0.00044109,120]
[338151099,1726315638918,-500.0,0.00044109,120]
[338151100,1726315638961,-500.0,0.00044109,120]
[338151101,1726315639004,-500.0,0.00044109,120]
[338151102,1726315639044,-228.94141587,0.00044109,120]
[338151103,1726315639084,-500.0,0.00044109,120]
[338151104,1726315639122,-500.0,0.00044109,120]
[338151105,1726315639160,-500.0,0.00044109,120]
[338151106,1726315639198,-500.0,0.00044109,120]
[338151107,1726315639238,-500.0,0.00044109,120]
[338151108,1726315639280,-500.0,0.00044109,120]
[338151109,1726315639321,-500.0,0.00044109,120]
[338151110,1726315639361,-5000.0,0.00044109,120]
[338151111,1726315639405,-1578.4,0.00044109,120]
[338151112,1726315639450,-500.0,0.00044109,120]
[338151113,1726315639495,-500.0,0.00044109,120]
[338151114,1726315639537,-500.0,0.00044109,120]
[338151115,1726315639577,-500.0,0.00044109,120]
[338151116,1726315639618,-500.0,0.00044109,120]
[338151117,1726315639660,-500.0,0.00044109,120]
[338151118,1726315639703,-869.73,0.00044109,120]
[338151119,1726315639742,-500.0,0.00044109,120]
[338151120,1726315639781,-500.0,0.00044109,120]
[338151121,1726315639822,-1790.23,0.00044109,120]
[338151122,1726315639860,-500.0,0.00044109,120]
[338151123,1726315639901,-500.0,0.00044109,120]
[338151124,1726315639941,-150.39834134,0.00044109,120]
[338151125,1726315639981,-1000.0,0.00044109,90]
[338151126,1726315640021,-500.0,0.00044109,120]
[338151127,1726315640064,-500.0,0.00044109,120]
[338151128,1726315640105,-1343.37,0.00044109,120]
[338151129,1726315640142,-500.0,0.00044109,120]
[338151130,1726315640180,-500.0,0.00044109,120]
[338151131,1726315640217,-1313.87,0.00044109,120]
[338151132,1726315640254,-677.79,0.00044109,120]
[338151133,1726315640291,-1028.51,0.00044109,120]
[338151134,1726315640329,-500.0,0.00044109,120]
[338151135,1726315640366,-500.0,0.00044109,120]
[338151136,1726315640403,-500.0,0.00044109,120]
[338151137,1726315640442,-744.34,0.00044109,120]
[338151138,1726315640480,-596.19,0.00044109,120]
[338151139,1726315640518,-2731.79,0.00044109,120]
[338151140,1726315640554,-913.71,0.00044109,120]
[338151141,1726315640591,-500.0,0.00044109,120]
[338151142,1726315640630,-2338.79,0.00044109,120]
[338151143,1726315640669,-2018.71,0.00044109,120]
[338151144,1726315640867,-500.0,0.00044109,120]
[338151145,1726315640908,-500.0,0.00044109,120]
[338151146,1726315640949,-500.0,0.00044109,120]
[338151147,1726315640990,-575.54,0.00044109,120]
[338151148,1726315641031,-500.0,0.00044109,120]
[338151149,1726315641070,-606.71,0.00044109,120]
[338151150,1726315641382,-513.4,0.00044109,120]
[338151151,1726315641427,-500.0,0.00044109,120]
[338151152,1726315641468,-856.2,0.00044109,120]
[338151153,1726315641510,-3601.58,0.00044109,120]
[338151154,1726315641548,-500.0,0.00044109,120]
[338151155,1726315641588,-500.0,0.00044109,120]
[338151156,1726315641629,-546.15,0.00044109,120]
[338151157,1726315641668,-500.0,0.00044109,120]
[338151158,1726315641706,-1148.39,0.00044109,120]
[338151159,1726315641743,-500.0,0.00044109,120]
[338151160,1726315641780,-3441.33,0.00044109,120]
[338151161,1726315641819,-1189.71,0.00044109,120]
[338151162,1726315641856,-500.0,0.00044109,120]
[338151163,1726315641892,-327.11462583,0.00044109,120]
[338151164,1726315641929,-504.83,0.00044109,120]
[338151165,1726315641966,-1134.08,0.00044109,120]
[338151166,1726315642003,-500.0,0.00044109,120]
[338151167,1726315642040,-2376.0,0.00044109,120]
[338151168,1726315642076,-500.0,0.00044109,120]
[338151169,1726315642112,-500.0,0.00044109,120]
[338151170,1726315642150,-500.0,0.00044109,120]
[338151171,1726315642185,-600.15,0.00044109,120]
[338151172,1726315642221,-500.0,0.00044109,120]
[338151173,1726315642260,-1889.31,0.00044109,120]
[338151174,1726315642299,-509.44999917,0.00044109,120]
[338151175,1726315642339,-388.3022166,0.00044109,120]
[338151176,1726315642383,-1048.01,0.00044109,120]
[338151177,1726315642426,-836.73,0.00044109,120]
[338151178,1726315642467,-568.42,0.00044109,120]
[338151179,1726315642505,-500.0,0.00044109,120]
[338151180,1726315642543,-1159.53,0.00044109,120]
[338151181,1726315642581,-1381.94,0.00044109,120]
[338151182,1726315642619,-171.38074448,0.00044109,120]
[338151183,1726315642658,-3047.52,0.00044109,120]
[338151184,1726315642698,-2012.22,0.00044109,120]
[338151185,1726315642739,-2147.05,0.00044109,120]
[338151186,1726315642777,-500.0,0.00044109,120]
[338151187,1726315642817,-1687.72,0.00044109,120]
[338151188,1726315642857,-3863.8,0.00044109,120]
[338151189,1726315642897,-500.0,0.00044109,120]
[338151190,1726315642953,-500.0,0.00044109,120]
[338151191,1726315643002,-14732.11,0.00044109,120]
[338151192,1726315643048,-500.0,0.00044109,120]
[338151193,1726315643096,-1613.53,0.00044109,120]
[338151194,1726315643142,-2943.31,0.00044109,120]
[338151195,1726315643188,-500.0,0.00044109,120]
[338151196,1726315643231,-500.0,0.00044109,120]
[338151197,1726315643274,-90472.43,0.00044109,120]
[338151198,1726315643316,-500.0,0.00044109,120]
[338151199,1726315643357,-4191.59,0.00044109,120]
[338151200,1726315643396,-500.0,0.00044109,120]
[338151201,1726315643438,-500.0,0.00044109,120]
[338151202,1726315643481,-6128.97,0.00044109,120]
[338151203,1726315643522,-544.99,0.00044109,120]
[338151204,1726315643560,-500.0,0.00044109,120]
[338151205,1726315643600,-500.0,0.00044109,120]
[338151206,1726315643641,-500.0,0.00044109,120]
[338151207,1726315643682,-500.0,0.00044109,120]
[338151208,1726315643724,-500.0,0.00044109,120]
[338151209,1726315643765,-18509.41,0.00044109,120]
[338151210,1726315643809,-1982.33,0.00044109,120]
[338151211,1726315643852,-500.0,0.00044109,120]
[338151212,1726315643893,-500.0,0.00044109,120]
[338151213,1726315643932,-500.0,0.00044109,120]
[338151214,1726315643972,-2557.41,0.00044109,18]
[338151215,1726315644014,-500.0,0.00044109,120]
[338151216,1726315644060,-500.0,0.00044109,120]
[338151217,1726315644101,-500.0,0.00044109,120]
[338151218,1726315644142,-500.0,0.00044109,120]
[338151219,1726315644183,-500.0,0.00044109,120]
[338151220,1726315644224,-243.23,0.00044109,120]
[338151221,1726315644265,-500.0,0.00044109,120]
[338151222,1726315644304,-631.17,0.00044109,120]
[338151223,1726315644345,-262.2,0.00044109,120]
[338151224,1726315644384,-500.0,0.00044109,120]
[338151225,1726315644423,-500.0,0.00044109,120]
[338151226,1726315644461,-500.0,0.00044109,120]
[338151227,1726315644501,-500.0,0.00044109,21]
[338151228,1726315644539,-500.0,0.00044109,120]
[338151229,1726315644577,-500.0,0.00044109,120]
[338151230,1726315644614,-500.0,0.00044109,120]
[338151231,1726315644652,-500.0,0.00044109,30]
[338151232,1726315644694,-500.0,0.00044109,120]
[338151233,1726315644739,-500.0,0.00044109,120]
[338151234,1726315644783,-157.13,0.00044109,120]
[338151235,1726315644824,-500.0,0.00044109,120]
[338151236,1726315644867,-500.0,0.00044109,120]
[338151237,1726315644910,-500.0,0.00044109,120]
[338151238,1726315644954,-500.0,0.00044109,120]
[338151239,1726315644999,-9598.56,0.00044109,120]
[338151240,1726315645044,-500.0,0.00044109,120]
[338151241,1726315645087,-150.0,0.00044109,30]
[338151242,1726315645133,-3200.0,0.00044109,14]
[338151243,1726315645180,-971.21,0.00044109,120]
[338151244,1726315645224,-2421.45,0.00044109,120]
[338151245,1726315645267,-500.0,0.00044109,120]
[338151246,1726315645306,-302.671,0.00044109,30]
[338151247,1726315645546,-500.0,0.00044109,120]
[338151248,1726315645589,-500.0,0.00044109,120]
[338151249,1726315645631,-4076.64,0.00044109,120]
[338151250,1726315645672,-500.0,0.00044109,120]
[338151251,1726315645712,-934.58,0.00044109,120]
[338151252,1726315645752,-500.0,0.00044109,120]
[338151253,1726315645794,-500.0,0.00044109,120]
[338151254,1726315645836,-554.17,0.00044109,120]
[338151255,1726315645880,-9183.3,0.00044109,120]
[338151256,1726315645923,-500.0,0.00044109,120]
[338151257,1726315645964,-901.52,0.00044109,120]
[338151258,1726315646006,-2020.46,0.00044109,120]
[338151259,1726315646047,-500.0,0.00044109,120]
[338151260,1726315646091,-927.09,0.00044109,120]
[338151261,1726315646131,-666.08,0.00044109,120]
[338151262,1726315646171,-500.0,0.00044109,120]
[338151263,1726315646211,-3763.01,0.00044109,120]
[338151264,1726315646254,-500.0,0.00044109,120]
[338151265,1726315646296,-500.0,0.00044109,120]
[338151266,1726315646337,-379.65017296,0.00044109,120]
[338151267,1726315648105,-500.0,0.00043835,120]
[338151268,1726315648153,-511.94611041,0.00043835,120]
[338151269,1726315648207,-500.0,0.00043835,120]
[338151270,1726315648255,-500.0,0.00043835,120]
[338151271,1726315648302,-500.0,0.00043835,120]
[338151272,1726315648350,-500.0,0.00043835,120]
[338151273,1726315648397,-500.0,0.00043835,120]
[338151274,1726315648446,-500.0,0.00043835,120]
[338151275,1726315648492,-500.0,0.00043835,120]
[338151276,1726315648538,-500.0,0.00043835,120]
[338151277,1726315648584,-4485.38927777,0.00044,46]
[338151278,1726315648633,-141.84982704,0.00044109,120]
[338151279,1726315648682,-500.0,0.00044109,120]
[338151280,1726315648730,-4211.93,0.00044109,120]
[338151281,1726315648775,-500.0,0.00044109,120]
[338151282,1726315648820,-500.0,0.00044109,120]
[338151283,1726315648863,-1652.28,0.00044109,120]
[338151284,1726315648910,-16528.59,0.00044109,120]
[338151285,1726315648952,-1887.03,0.00044109,120]
[338151286,1726315648996,-41651.8,0.00044109,120]
[338151287,1726315649039,-500.0,0.00044109,120]
[338151288,1726315649081,-697.94,0.00044109,120]
[338151289,1726315649123,-986.74,0.00044109,120]
[338151290,1726315649163,-500.0,0.00044109,120]
[338151291,1726315649203,-500.0,0.00044109,120]
[338151292,1726315649244,-1284.39,0.00044109,120]
[338151293,1726315649294,-500.0,0.00044109,120]
[338151294,1726315649341,-507.99219363,0.00044109,120]
[338151295,1726315649390,-1444.9,0.00044109,120]
[338151296,1726315649432,-500.0,0.00044109,120]
[338151297,1726315649472,-1322.69,0.00044109,120]
[338151298,1726315649513,-1549.33,0.00044109,120]
[338151299,1726315649552,-479.31967112,0.00044109,120]
[338151300,1726315649596,-500.0,0.00044109,120]
[338151301,1726315649641,-500.0,0.00044109,120]
[338151302,1726315649685,-500.0,0.00044109,120]
[338151303,1726315649730,-500.0,0.00044109,120]
[338151304,1726315649772,-500.0,0.00044109,120]
[338151305,1726315649813,-500.0,0.00044109,120]
[338151306,1726315649856,-151.0,0.00044247,120]
[338151307,1726315649899,-179.9,0.00044366,31]
[338151308,1726315650192,-152.0,0.00044366,31]
[338151309,1726315650238,-389.60267552,0.00044383,120]
[338151310,1726315650276,-500.0,0.00044383,120]
[338151311,1726315650315,-500.0,0.00044383,120]
[338151312,1726315650360,-522.16071858,0.00044383,120]
[338151313,1726315650401,-522.21,0.00044383,120]
[338151314,1726315650445,-500.0,0.00044383,120]
[338151315,1726315650485,-605.85,0.00044383,120]
[338151316,1726315650523,-448.18839331,0.00044383,120]
[338151317,1726315650562,-500.0,0.00044383,120]
[338151318,1726315650604,-500.0,0.00044383,120]
[338151319,1726315650643,-500.0,0.00044383,120]
[338151320,1726315650680,-500.0,0.00044383,120]
[338151321,1726315650718,-500.0,0.00044383,120]
[338151322,1726315650756,-500.0,0.00044383,120]
[338151323,1726315650794,-691.88,0.00044383,120]
[338151324,1726315650831,-621.18,0.00044383,120]
[338151325,1726315650869,-500.0,0.00044383,120]
[338151326,1726315650905,-500.0,0.00044383,120]
[338151327,1726315650944,-448.36233362,0.00044383,120]
[338151328,1726315650982,-559.98,0.00044383,120]
[338151329,1726315651018,-500.0,0.00044383,120]
[338151330,1726315651061,-500.0,0.00044383,120]
[338151331,1726315651103,-500.0,0.00044383,120]
[338151332,1726315651142,-542.87,0.00044383,120]
[338151333,1726315651180,-537.72,0.00044383,120]
[338151334,1726315651217,-587.05720444,0.00044383,120]
[338151335,1726315651253,-500.0,0.00044383,120]